[Event "Iceland-ch 2020"]
[Site "Gardabaer"]
[Date "2020.08.29"]
[Round "8.4"]
[White "Thorfinnsson, Bjorn"]
[Black "Stefansson, Vignir Vatnar"]
[Result "0-1"]
[ECO "E48"]
[WhiteElo "2387"]
[BlackElo "2301"]
[Annotator "ChessBase"]
[PlyCount "94"]
[EventDate "2020.08.22"]
[EventCountry "ISL"]
[SourceTitle "playchess.com"]
[Source "ChessBase"]
[SourceQuality "1"]
[TimeControl "30/5400+30:900+30"]

1. d4 {[%emt 0:02:15]} e6 {[%emt 0:00:00]} 2. c4 {[%emt 0:00:48]} Nf6 {[%emt 0:00:00]} 3. Nc3 {[%emt 0:00:17]} Bb4 {[%emt 0:00:00]} 4. e3 {[%emt 0:00:08]} O-O {[%emt 0:00:15]} 5. Bd3 {[%emt 0:02:21]} d5 {[%emt 0:00:06]} 6. Nge2 {[%emt 0:00:54]} c5 {[%emt 0:00:13]} 7. O-O {[%emt 0:02:06]} cxd4 {[%emt 0:01:50]} 8. exd4 {[%emt 0:04:01]} dxc4 {[%emt 0:05:13]} 9. Bxc4 {[%emt 0:00:18]} Nbd7 {[%emt 0:01:08]} 10. Bg5 {[%emt 0:01:40]} Bd6 {[%emt 0:13:34]} 11. Ng3 {[%emt 0:05:52]} h6 {[%emt 0:01:14]} 12. Be3 {[%emt 0:08:31]} b6 {[%emt 0:00:36]} 13. Be2 {[%emt 0:10:15]} Bb7 {[%emt 0:12:15]} 14. Bf3 {[%emt 0:00:24]} Qb8 {[%emt 0:00:34]} 15. Rc1 {[%emt 0:01:03]} Bxf3 {[%emt 0:01:59]} 16. Qxf3 {[%emt 0:00:07]} b5 {[%emt 0:01:11]} 17. Nce4 {[%emt 0:22:33]} Bxg3 {[%emt 0:05:15]} 18. Nxg3 {[%emt 0:01:03]} Qd6 {[%emt 0:02:15]} 19. Rc6 {[%emt 0:04:34]} Qd5 {[%emt 0:00:28]} 20. Qxd5 {[%emt 0:01:34]} Nxd5 {[%emt 0:00:07]} 21. Ne4 {[%emt 0:00:58]} N7b6 {[%emt 0:00:26]} 22. Nd6 {[%emt 0:00:36]} Nb4 {[%emt 0:00:55]} 23. Rc5 {[%emt 0:01:30]} a6 {[%emt 0:00:22]} 24. a3 {[%emt 0:02:29]} N4d5 {[%emt 0:03:15]} 25. Rc6 {[%emt 0:01:32]} Rfd8 {[%emt 0:02:24]} 26. b3 {[%emt 0:01:10]} Rab8 {[%emt 0:03:54]} 27. Ne4 {[%emt 0:03:03]} a5 {[%emt 0:01:30]} 28. Rc5 {[%emt 0:07:37]} Nd7 {[%emt 0:04:41]} 29. Rc2 {[%emt 0:00:06]} a4 {[%emt 0:01:32]} 30. b4 {[%emt 0:02:40]} N7b6 {[%emt 0:00:58]} 31. Nc5 {[%emt 0:15:45]} Nc4 {[%emt 0:15:07]} 32. Bc1 {[%emt 0:00:35]} Ndb6 {[%emt 0:00:05]} 33. Rd1 {[%emt 0:02:20]} e5 {[%emt 0:01:39]} 34. Kf1 {[%emt 0:00:21]} exd4 {[%emt 0:00:28]} 35. Bb2 {[%emt 0:00:26]} Nxb2 {[%emt 0:01:21]} 36. Rxb2 {[%emt 0:00:06]} Nc4 {[%emt 0:00:05]} 37. Ra2 {[%emt 0:00:19]} Rd6 {[%emt 0:00:52]} 38. Rd3 {[%emt 0:00:10]} f6 {[%emt 0:04:40]} 39. Re2 {[%emt 0:01:17]} Ne5 {[%emt 0:04:58]} 40. Rd1 {[%emt 0:00:00]} Rd5 {[%emt 0:00:00]} 41. Re4 {[%emt 0:00:00]} d3 {[%emt 0:00:00]} 42. f4 {[%emt 0:00:00]} Nc4 {[%emt 0:00:00]} 43. Nxa4 {[%emt 0:00:00]} f5 {[%emt 0:00:00]} 44. Rxc4 {[%emt 0:00:00]} bxc4 {[%emt 0:00:00]} 45. Rd2 {[%emt 0:00:00]} Rd7 {[%emt 0:00:00]} 46. Nc3 {[%emt 0:00:00]} Ra7 {[%emt 0:00:00]} 47. Ra2 {[%emt 0:00:00]} Re8 {[%emt 0:00:00]} 0-1

[Event "Iceland-ch 2020"]
[Site "Gardabaer"]
[Date "2020.08.29"]
[Round "8.5"]
[White "Ragnarsson, Dagur"]
[Black "Kjartansson, Gudmundur"]
[Result "0-1"]
[ECO "E90"]
[WhiteElo "2396"]
[BlackElo "2466"]
[Annotator "ChessBase"]
[PlyCount "78"]
[EventDate "2020.08.22"]
[EventCountry "ISL"]
[SourceTitle "playchess.com"]
[Source "ChessBase"]
[SourceQuality "1"]
[TimeControl "30/5400+30:900+30"]

1. d4 {[%emt 0:00:00]} Nf6 {[%emt 0:00:00]} 2. c4 {[%emt 0:00:00]} c5 {[%emt 0:00:00]} 3. d5 {[%emt 0:00:00]} g6 {[%emt 0:00:00]} 4. Nc3 {[%emt 0:00:22]} Bg7 {[%emt 0:00:02]} 5. e4 {[%emt 0:01:12]} d6 {[%emt 0:00:09]} 6. h3 {[%emt 0:02:06]} O-O {[%emt 0:00:11]} 7. Bg5 {[%emt 0:00:04]} e6 {[%emt 0:09:38]} 8. Bd3 {[%emt 0:00:39]} Na6 {[%emt 0:15:14]} 9. Nf3 {[%emt 0:03:14]} h6 {[%emt 0:02:04]} 10. Be3 {[%emt 0:01:08]} Nc7 {[%emt 0:00:36]} 11. a4 {[%emt 0:06:39]} Na6 {[%emt 0:07:17]} 12. O-O {[%emt 0:05:33]} e5 {[%emt 0:02:29]} 13. g4 {[%emt 0:11:50]} Nb4 {[%emt 0:04:25]} 14. Ne1 {[%emt 0:11:05]} Nh7 {[%emt 0:03:17]} 15. Bb1 {[%emt 0:12:13]} h5 {[%emt 0:06:54]} 16. f3 {[%emt 0:00:56]} Bf6 {[%emt 0:02:33]} 17. Ng2 {[%emt 0:04:18]} Bg5 {[%emt 0:01:52]} 18. Qd2 {[%emt 0:03:06]} Kg7 {[%emt 0:03:30]} 19. Kf2 {[%emt 0:02:46]} Rh8 {[%emt 0:04:21]} 20. Rh1 {[%emt 0:07:53]} Bxe3+ {[%emt 0:07:48]} 21. Qxe3 {[%emt 0:00:11]} Ng5 {[%emt 0:00:42]} 22. Bd3 {[%emt 0:00:43]} Qf6 {[%emt 0:02:02]} 23. Ke2 {[%emt 0:09:55]} Qxf3+ {[%emt 0:08:40]} 24. Qxf3 {[%emt 0:00:03]} Nxf3 {[%emt 0:00:04]} 25. Kxf3 {[%emt 0:00:12]} Nxd3 {[%emt 0:00:08]} 26. Nb5 {[%emt 0:03:52]} hxg4+ {[%emt 0:02:33]} 27. hxg4 {[%emt 0:00:04]} Bxg4+ {[%emt 0:00:34]} 28. Kxg4 {[%emt 0:05:17]} Nf2+ {[%emt 0:01:34]} 29. Kf3 {[%emt 0:00:04]} Nxh1 {[%emt 0:00:10]} 30. Nxd6 {[%emt 0:00:03]} Rh3+ {[%emt 0:00:31]} 31. Ke2 {[%emt 0:15:08]} Ng3+ {[%emt 0:18:03]} 32. Kf2 {[%emt 0:00:26]} Rd8 {[%emt 0:00:28]} 33. Nb5 {[%emt 0:00:29]} Nxe4+ {[%emt 0:00:12]} 34. Ke2 {[%emt 0:00:04]} a6 {[%emt 0:00:26]} 35. Na3 {[%emt 0:00:03]} Rb3 {[%emt 0:00:59]} 36. Ne3 {[%emt 0:00:10]} Rh8 {[%emt 0:00:12]} 37. Nac2 {[%emt 0:00:16]} Rh2+ {[%emt 0:00:12]} 38. Kf3 {[%emt 0:00:03]} f5 {[%emt 0:00:13]} 39. d6 {[%emt 0:00:16]} Rf2# {[%emt 0:00:05]} 0-1

[Event "Iceland-ch 2020"]
[Site "Gardabaer"]
[Date "2020.08.30"]
[Round "9.1"]
[White "Kjartansson, Gudmundur"]
[Black "Gretarsson, Hjorvar Steinn"]
[Result "1/2-1/2"]
[ECO "E12"]
[WhiteElo "2466"]
[BlackElo "2579"]
[Annotator "ChessBase"]
[PlyCount "155"]
[EventDate "2020.08.22"]
[EventCountry "ISL"]
[SourceTitle "playchess.com"]
[Source "ChessBase"]
[SourceQuality "1"]
[TimeControl "30/5400+30:900+30"]

1. d4 {[%emt 0:00:00]} Nf6 {[%emt 0:00:19]} 2. c4 {[%emt 0:00:00]} e6 {[%emt 0:00:21]} 3. Nf3 {[%emt 0:00:00]} b6 {[%emt 0:00:04]} 4. a3 {[%emt 0:00:19]} Ba6 {[%emt 0:00:07]} 5. Qc2 {[%emt 0:00:37]} Bb7 {[%emt 0:00:34]} 6. Nc3 {[%emt 0:00:22]} c5 {[%emt 0:00:04]} 7. e4 {[%emt 0:00:53]} cxd4 {[%emt 0:00:04]} 8. Nxd4 {[%emt 0:00:04]} Bc5 {[%emt 0:00:03]} 9. Nf3 {[%emt 0:00:40]} Nc6 {[%emt 0:02:43]} 10. b4 {[%emt 0:00:37]} Nd4 {[%emt 0:03:05]} 11. Qd2 {[%emt 0:00:48]} Nxf3+ {[%emt 0:01:19]} 12. gxf3 {[%emt 0:00:05]} Be7 {[%emt 0:00:21]} 13. Bb2 {[%emt 0:01:11]} a5 {[%emt 0:22:39]} 14. Nb5 {[%emt 0:10:09]} Qb8 {[%emt 0:04:41]} 15. Rg1 {[%emt 0:04:23]} g6 {[%emt 0:12:17]} 16. Rg5 {[%emt 0:15:10]} O-O {[%emt 0:07:38]} 17. Be5 {[%emt 0:02:12]} d6 {[%emt 0:02:26]} 18. Nxd6 {[%emt 0:12:50]} Nd7 {[%emt 0:09:30]} 19. Bg3 {[%emt 0:12:38]} e5 {[%emt 0:06:33]} 20. Rd1 {[%emt 0:02:13]} Rd8 {[%emt 0:05:00]} 21. Rg4 {[%emt 0:07:29]} axb4 {[%emt 0:02:09]} 22. axb4 {[%emt 0:01:46]} Nf6 {[%emt 0:02:34]} 23. Bxe5 {[%emt 0:05:20]} Nxg4 {[%emt 0:02:01]} 24. fxg4 {[%emt 0:00:01]} Bxe4 {[%emt 0:03:30]} 25. Qf4 {[%emt 0:07:58]} Bxd6 {[%emt 0:00:56]} 26. Bxd6 {[%emt 0:00:15]} Qb7 {[%emt 0:01:27]} 27. Be2 {[%emt 0:02:15]} Re8 {[%emt 0:01:05]} 28. Be5 {[%emt 0:05:30]} Qe7 {[%emt 0:00:49]} 29. Bf6 {[%emt 0:01:48]} Qxb4+ {[%emt 0:00:09]} 30. Kf1 {[%emt 0:00:07]} Ra2 {[%emt 0:01:37]} 31. Be5 {[%emt 0:20:48]} Qe7 {[%emt 0:15:48]} 32. Bf6 {[%emt 0:00:37]} Qf8 {[%emt 0:01:44]} 33. Bd4 {[%emt 0:01:30]} Qe7 {[%emt 0:00:36]} 34. Bf6 {[%emt 0:00:07]} Bg2+ {[%emt 0:00:41]} 35. Kxg2 {[%emt 0:00:18]} Qxe2 {[%emt 0:00:07]} 36. Rd6 {[%emt 0:01:20]} Rc2 {[%emt 0:03:11]} 37. h3 {[%emt 0:00:28]} h5 {[%emt 0:02:52]} 38. Rxb6 {[%emt 0:00:38]} hxg4 {[%emt 0:00:47]} 39. hxg4 {[%emt 0:00:20]} Qxc4 {[%emt 0:00:41]} 40. Qxc4 {[%emt 0:00:00]} Rxc4 {[%emt 0:00:00]} 41. Rb1 {[%emt 0:00:00]} Rf4 {[%emt 0:00:00]} 42. g5 {[%emt 0:00:00]} Rh4 {[%emt 0:00:00]} 43. Kg3 {[%emt 0:00:00]} Rh7 {[%emt 0:00:00]} 44. Rd1 {[%emt 0:00:00]} Kf8 {[%emt 0:00:00]} 45. Rc1 {[%emt 0:00:00]} Ra8 {[%emt 0:00:00]} 46. Re1 {[%emt 0:00:00]} Rc8 {[%emt 0:00:00]} 47. Ra1 {[%emt 0:00:00]} Ke8 {[%emt 0:00:00]} 48. Rd1 {[%emt 0:00:00]} Ra8 {[%emt 0:00:00]} 49. f4 {[%emt 0:00:00]} Rh5 {[%emt 0:00:00]} 50. Kg2 {[%emt 0:00:00]} Kf8 {[%emt 0:00:00]} 51. Kg3 {[%emt 0:00:00]} Kg8 {[%emt 0:00:00]} 52. Kg2 {[%emt 0:00:00]} Rf8 {[%emt 0:00:00]} 53. Kg3 {[%emt 0:00:00]} Kh7 {[%emt 0:00:00]} 54. Kg2 {[%emt 0:00:00]} Ra8 {[%emt 0:00:00]} 55. Rd7 {[%emt 0:00:00]} Kg8 {[%emt 0:00:00]} 56. Rd1 {[%emt 0:00:03]} Re8 {[%emt 0:00:00]} 57. Kg3 {[%emt 0:00:23]} Kf8 {[%emt 0:00:00]} 58. Kg2 {[%emt 0:00:55]} Re2+ {[%emt 0:00:00]} 59. Kf3 {[%emt 0:02:58]} Re8 {[%emt 0:00:00]} 60. Kg2 {[%emt 0:00:17]} Rh7 {[%emt 0:00:00]} 61. Kg3 {[%emt 0:00:26]} Re3+ {[%emt 0:00:00]} 62. Kf2 {[%emt 0:00:40]} Re6 {[%emt 0:00:00]} 63. Kg3 {[%emt 0:00:25]} Re8 {[%emt 0:00:00]} 64. Kg2 {[%emt 0:00:21]} Kg8 {[%emt 0:00:00]} 65. Kg3 {[%emt 0:00:22]} Ra8 {[%emt 0:00:00]} 66. Kg2 {[%emt 0:00:28]} Rh5 {[%emt 0:01:30]} 67. Kg3 {[%emt 0:00:33]} Kh7 {[%emt 0:00:10]} 68. Rd7 {[%emt 0:00:29]} Rf8 {[%emt 0:00:22]} 69. Rd1 {[%emt 0:00:08]} Rb8 {[%emt 0:04:08]} 70. Rd7 {[%emt 0:00:19]} Kg8 {[%emt 0:00:11]} 71. Rd1 {[%emt 0:00:06]} Ra8 {[%emt 0:01:43]} 72. Kg2 {[%emt 0:00:30]} Re8 {[%emt 0:04:51]} 73. Kg3 {[%emt 0:00:30]} Kf8 {[%emt 0:00:03]} 74. Kg2 {[%emt 0:00:24]} Re2+ {[%emt 0:00:23]} 75. Kf3 {[%emt 0:00:36]} Rhh2 {[%emt 0:00:02]} 76. Rd8+ {[%emt 0:00:19]} Re8 {[%emt 0:00:02]} 77. Bg7+ {[%emt 0:00:12]} Ke7 {[%emt 0:00:04]} 78. Bf6+ {[%emt 0:00:04]} 1/2-1/2

[Event "Iceland-ch 2020"]
[Site "Gardabaer"]
[Date "2020.08.30"]
[Round "9.3"]
[White "Thorhallsson, Throstur"]
[Black "Thorfinnsson, Bjorn"]
[Result "1/2-1/2"]
[ECO "A47"]
[WhiteElo "2430"]
[BlackElo "2387"]
[Annotator "ChessBase"]
[PlyCount "120"]
[EventDate "2020.08.22"]
[EventCountry "ISL"]
[SourceTitle "playchess.com"]
[Source "ChessBase"]
[SourceQuality "1"]
[TimeControl "30/5400+30:900+30"]

1. d4 {[%emt 0:04:11]} Nf6 {[%emt 0:01:43]} 2. Nf3 {[%emt 0:00:36]} b6 {[%emt 0:00:48]} 3. g3 {[%emt 0:01:32]} Bb7 {[%emt 0:01:02]} 4. Bg2 {[%emt 0:00:07]} c5 {[%emt 0:00:15]} 5. e3 {[%emt 0:05:00]} g6 {[%emt 0:01:01]} 6. c4 {[%emt 0:00:16]} cxd4 {[%emt 0:03:57]} 7. exd4 {[%emt 0:00:40]} d5 {[%emt 0:00:29]} 8. Ne5 {[%emt 0:03:20]} Qc8 {[%emt 0:04:46]} 9. O-O {[%emt 0:23:35]} dxc4 {[%emt 0:09:47]} 10. Qa4+ {[%emt 0:01:06]} Nfd7 {[%emt 0:03:12]} 11. Bxb7 {[%emt 0:04:15]} Qxb7 {[%emt 0:00:11]} 12. Qxc4 {[%emt 0:00:09]} e6 {[%emt 0:03:58]} 13. Re1 {[%emt 0:10:32]} Nxe5 {[%emt 0:13:49]} 14. dxe5 {[%emt 0:00:20]} b5 {[%emt 0:04:22]} 15. Qh4 {[%emt 0:01:04]} Be7 {[%emt 0:02:05]} 16. Bg5 {[%emt 0:06:08]} Nc6 {[%emt 0:01:01]} 17. Bxe7 {[%emt 0:06:25]} Qxe7 {[%emt 0:03:46]} 18. Qe4 {[%emt 0:02:17]} Rc8 {[%emt 0:00:06]} 19. Na3 {[%emt 0:02:29]} a6 {[%emt 0:26:45]} 20. Rac1 {[%emt 0:00:40]} Na7 {[%emt 0:00:50]} 21. Rxc8+ {[%emt 0:01:47]} Nxc8 {[%emt 0:00:05]} 22. Qc6+ {[%emt 0:02:34]} Qd7 {[%emt 0:00:07]} 23. Qxa6 {[%emt 0:01:08]} b4 {[%emt 0:00:11]} 24. Nc2 {[%emt 0:03:59]} O-O {[%emt 0:05:40]} 25. Qc4 {[%emt 0:03:10]} Qd2 {[%emt 0:01:03]} 26. Re2 {[%emt 0:04:01]} Qd1+ {[%emt 0:00:41]} 27. Re1 {[%emt 0:03:21]} Qd2 {[%emt 0:00:04]} 28. Qe2 {[%emt 0:00:21]} Rd8 {[%emt 0:00:06]} 29. Qxd2 {[%emt 0:01:43]} Rxd2 {[%emt 0:00:21]} 30. Rc1 {[%emt 0:00:24]} Nb6 {[%emt 0:02:01]} 31. b3 {[%emt 0:17:11]} Nd5 {[%emt 0:21:11]} 32. Kf1 {[%emt 0:00:13]} g5 {[%emt 0:00:59]} 33. Ke1 {[%emt 0:00:33]} Rd3 {[%emt 0:00:05]} 34. Ke2 {[%emt 0:02:00]} Rc3 {[%emt 0:00:03]} 35. Kd2 {[%emt 0:01:22]} Rc5 {[%emt 0:00:43]} 36. a3 {[%emt 0:02:45]} bxa3 {[%emt 0:00:08]} 37. Nxa3 {[%emt 0:00:02]} Ra5 {[%emt 0:00:06]} 38. Nc4 {[%emt 0:00:21]} Ra2+ {[%emt 0:00:38]} 39. Rc2 {[%emt 0:00:08]} Ra1 {[%emt 0:00:02]} 40. Ne3 {[%emt 0:00:00]} Ne7 {[%emt 0:00:00]} 41. Rc7 {[%emt 0:00:00]} Kf8 {[%emt 0:00:00]} 42. Rb7 {[%emt 0:00:00]} Ra2+ {[%emt 0:00:00]} 43. Ke1 {[%emt 0:00:00]} Nc6 {[%emt 0:00:00]} 44. Nc4 {[%emt 0:00:00]} g4 {[%emt 0:00:00]} 45. Rd7 {[%emt 0:00:00]} Nb4 {[%emt 0:00:00]} 46. Kf1 {[%emt 0:00:00]} Ra1+ {[%emt 0:00:00]} 47. Ke2 {[%emt 0:00:00]} Ra2+ {[%emt 0:00:00]} 48. Rd2 {[%emt 0:00:00]} Ra1 {[%emt 0:00:00]} 49. Rd1 {[%emt 0:03:15]} Ra2+ {[%emt 0:00:00]} 50. Kf1 {[%emt 0:00:40]} Nd5 {[%emt 0:00:00]} 51. Rd2 {[%emt 0:01:03]} Ra1+ {[%emt 0:00:00]} 52. Kg2 {[%emt 0:00:01]} Rb1 {[%emt 0:00:00]} 53. Rd3 {[%emt 0:01:25]} h5 {[%emt 0:00:00]} 54. h3 {[%emt 0:01:21]} Nb4 {[%emt 0:00:00]} 55. Rd8+ {[%emt 0:01:02]} Ke7 {[%emt 0:00:00]} 56. Rh8 {[%emt 0:00:02]} Nd3 {[%emt 0:00:00]} 57. Rxh5 {[%emt 0:00:15]} gxh3+ {[%emt 0:02:26]} 58. Rxh3 {[%emt 0:01:57]} Ne1+ {[%emt 0:00:09]} 59. Kf1 {[%emt 0:00:06]} Nf3+ {[%emt 0:00:04]} 60. Kg2 {[%emt 0:00:03]} Ne1+ {[%emt 0:00:04]} 1/2-1/2

[Event "Iceland-ch 2020"]
[Site "Gardabaer"]
[Date "2020.08.30"]
[Round "9.4"]
[White "Petursson, Margeir"]
[Black "Jonsson, Gauti Pall"]
[Result "1/2-1/2"]
[ECO "A65"]
[WhiteElo "2475"]
[BlackElo "2046"]
[Annotator "ChessBase"]
[PlyCount "81"]
[EventDate "2020.08.22"]
[EventCountry "ISL"]
[SourceTitle "playchess.com"]
[Source "ChessBase"]
[SourceQuality "1"]
[TimeControl "30/5400+30:900+30"]

1. d4 {[%emt 0:00:00]} Nf6 {[%emt 0:00:00]} 2. c4 {[%emt 0:00:00]} g6 {[%emt 0:00:38]} 3. Nc3 {[%emt 0:00:00]} Bg7 {[%emt 0:00:17]} 4. e4 {[%emt 0:00:00]} d6 {[%emt 0:00:17]} 5. f3 {[%emt 0:00:04]} O-O {[%emt 0:00:28]} 6. Be3 {[%emt 0:00:05]} c5 {[%emt 0:01:31]} 7. Nge2 {[%emt 0:00:10]} Nc6 {[%emt 0:03:44]} 8. d5 {[%emt 0:01:41]} Ne5 {[%emt 0:01:03]} 9. Ng3 {[%emt 0:00:34]} h5 {[%emt 0:02:01]} 10. Be2 {[%emt 0:00:47]} e6 {[%emt 0:03:09]} 11. O-O {[%emt 0:02:28]} exd5 {[%emt 0:03:30]} 12. cxd5 {[%emt 0:00:52]} Nh7 {[%emt 0:04:08]} 13. Qd2 {[%emt 0:10:15]} h4 {[%emt 0:05:13]} 14. Nh1 {[%emt 0:00:35]} f5 {[%emt 0:01:28]} 15. Nf2 {[%emt 0:13:40]} a6 {[%emt 0:06:41]} 16. a4 {[%emt 0:03:36]} Qa5 {[%emt 0:05:17]} 17. exf5 {[%emt 0:04:13]} Bxf5 {[%emt 0:06:51]} 18. Nce4 {[%emt 0:03:37]} Qxd2 {[%emt 0:03:30]} 19. Bxd2 {[%emt 0:00:19]} Nf7 {[%emt 0:00:42]} 20. Bc3 {[%emt 0:02:44]} b6 {[%emt 0:03:25]} 21. Rfe1 {[%emt 0:03:31]} Bd7 {[%emt 0:03:52]} 22. Nd3 {[%emt 0:02:42]} g5 {[%emt 0:03:01]} 23. f4 {[%emt 0:02:59]} Bf5 {[%emt 0:08:02]} 24. Bh5 {[%emt 0:04:01]} Bxc3 {[%emt 0:03:36]} 25. bxc3 {[%emt 0:02:29]} Bxe4 {[%emt 0:02:30]} 26. Rxe4 {[%emt 0:01:02]} Nf6 {[%emt 0:01:35]} 27. Bxf7+ {[%emt 0:00:45]} Rxf7 {[%emt 0:00:57]} 28. Re6 {[%emt 0:03:29]} Nxd5 {[%emt 0:02:22]} 29. Rxd6 {[%emt 0:02:27]} Nxc3 {[%emt 0:03:48]} 30. g3 {[%emt 0:05:46]} hxg3 {[%emt 0:01:41]} 31. hxg3 {[%emt 0:16:46]} gxf4 {[%emt 0:17:22]} 32. Nxf4 {[%emt 0:00:57]} Rg7 {[%emt 0:02:04]} 33. Rxb6 {[%emt 0:06:11]} Rxg3+ {[%emt 0:00:52]} 34. Kh2 {[%emt 0:02:37]} Rg4 {[%emt 0:01:16]} 35. Rg1 {[%emt 0:06:33]} Rxg1 {[%emt 0:00:50]} 36. Kxg1 {[%emt 0:00:06]} Nxa4 {[%emt 0:00:15]} 37. Rc6 {[%emt 0:00:16]} a5 {[%emt 0:02:23]} 38. Ne6 {[%emt 0:07:17]} Nb2 {[%emt 0:01:38]} 39. Nxc5 {[%emt 0:00:39]} a4 {[%emt 0:02:25]} 40. Nxa4 {[%emt 0:00:00]} Rxa4 {[%emt 0:00:00]} 41. Rc7 {[%emt 0:00:00]} 1/2-1/2

[Event "Iceland-ch 2020"]
[Site "Gardabaer"]
[Date "2020.08.30"]
[Round "9.5"]
[White "Gretarsson, Helgi Ass"]
[Black "Thorfinnsson, Bragi"]
[Result "0-1"]
[ECO "E33"]
[WhiteElo "2401"]
[BlackElo "2427"]
[Annotator "ChessBase"]
[PlyCount "104"]
[EventDate "2020.08.22"]
[EventCountry "ISL"]
[SourceTitle "playchess.com"]
[Source "ChessBase"]
[SourceQuality "1"]
[TimeControl "30/5400+30:900+30"]

1. d4 {[%emt 0:00:00]} Nf6 {[%emt 0:00:00]} 2. c4 {[%emt 0:00:00]} e6 {[%emt 0:00:02]} 3. Nc3 {[%emt 0:02:26]} Bb4 {[%emt 0:00:20]} 4. Qc2 {[%emt 0:00:05]} O-O {[%emt 0:00:53]} 5. a3 {[%emt 0:01:35]} Bxc3+ {[%emt 0:00:37]} 6. Qxc3 {[%emt 0:00:01]} Nc6 {[%emt 0:02:51]} 7. Nf3 {[%emt 0:07:31]} d6 {[%emt 0:02:48]} 8. b3 {[%emt 0:16:23]} Re8 {[%emt 0:05:52]} 9. Bb2 {[%emt 0:03:57]} e5 {[%emt 0:01:28]} 10. d5 {[%emt 0:00:10]} Ne7 {[%emt 0:01:19]} 11. Nd2 {[%emt 0:00:39]} Nf5 {[%emt 0:10:35]} 12. b4 {[%emt 0:18:18]} c6 {[%emt 0:03:15]} 13. e4 {[%emt 0:01:11]} Nd4 {[%emt 0:00:38]} 14. Qd3 {[%emt 0:01:54]} cxd5 {[%emt 0:04:41]} 15. cxd5 {[%emt 0:00:02]} Nxd5 {[%emt 0:04:38]} 16. exd5 {[%emt 0:11:48]} Bf5 {[%emt 0:00:31]} 17. Qg3 {[%emt 0:00:06]} Nc2+ {[%emt 0:01:07]} 18. Kd1 {[%emt 0:00:06]} Nxa1 {[%emt 0:00:45]} 19. Bxa1 {[%emt 0:00:01]} Qd7 {[%emt 0:01:20]} 20. Bc4 {[%emt 0:00:20]} Rac8 {[%emt 0:02:32]} 21. Ke2 {[%emt 0:19:38]} b5 {[%emt 0:04:46]} 22. Bb3 {[%emt 0:02:03]} Bc2 {[%emt 0:09:02]} 23. Re1 {[%emt 0:00:14]} f5 {[%emt 0:06:15]} 24. Kf1 {[%emt 0:00:39]} Qc7 {[%emt 0:00:53]} 25. Ba2 {[%emt 0:03:58]} Kh8 {[%emt 0:01:31]} 26. h3 {[%emt 0:00:31]} a5 {[%emt 0:00:59]} 27. Kg1 {[%emt 0:04:01]} axb4 {[%emt 0:02:42]} 28. axb4 {[%emt 0:00:01]} Qa7 {[%emt 0:01:33]} 29. Bb3 {[%emt 0:01:25]} Qa3 {[%emt 0:01:30]} 30. f4 {[%emt 0:05:10]} Bxb3 {[%emt 0:06:48]} 31. Qxb3 {[%emt 0:15:32]} Qa7+ {[%emt 0:16:14]} 32. Kh1 {[%emt 0:00:40]} Qf2 {[%emt 0:02:33]} 33. Qd1 {[%emt 0:00:07]} Qxf4 {[%emt 0:01:16]} 34. Nf3 {[%emt 0:00:01]} h6 {[%emt 0:02:34]} 35. Qd3 {[%emt 0:00:20]} Rc1 {[%emt 0:02:26]} 36. Qxb5 {[%emt 0:01:09]} Rec8 {[%emt 0:00:19]} 37. Bb2 {[%emt 0:00:13]} Rxe1+ {[%emt 0:01:32]} 38. Nxe1 {[%emt 0:00:02]} Qf2 {[%emt 0:00:38]} 39. Qd7 {[%emt 0:01:39]} Qxe1+ {[%emt 0:01:00]} 40. Kh2 {[%emt 0:00:00]} Rb8 {[%emt 0:00:00]} 41. Qxd6 {[%emt 0:00:00]} Qxb4 {[%emt 0:00:00]} 42. Qxb4 {[%emt 0:00:00]} Rxb4 {[%emt 0:00:00]} 43. Bxe5 {[%emt 0:00:00]} Rb5 {[%emt 0:00:00]} 44. Kg3 {[%emt 0:00:00]} Rxd5 {[%emt 0:00:00]} 45. Kf4 {[%emt 0:00:00]} Rd2 {[%emt 0:00:00]} 46. Kxf5 {[%emt 0:00:00]} Rxg2 {[%emt 0:00:00]} 47. h4 {[%emt 0:00:00]} Kg8 {[%emt 0:00:00]} 48. Bf4 {[%emt 0:00:00]} g6+ {[%emt 0:00:00]} 49. Ke6 {[%emt 0:00:00]} Kh7 {[%emt 0:00:00]} 50. Be5 {[%emt 0:00:00]} Rf2 {[%emt 0:00:00]} 51. Bf6 {[%emt 0:00:00]} g5 {[%emt 0:00:00]} 52. hxg5 {[%emt 0:00:00]} Kg6 {[%emt 0:00:00]} 0-1